bitfinex/quotes_ETHUSD_20241105
["timestamp","ask_amount","ask_price","bid_price","bid_amount"]
[1730826960133,0.7658,2475.0,2474.6,4.04096]
[1730826960438,0.7658,2475.0,2473.9,4.52109669]
[1730826960638,0.7658,2475.0,2474.4,4.04124]
[1730826960856,4.80621,2475.0,2474.4,4.04124]
[1730826961270,0.7658,2475.0,2474.5,4.04117]
[1730826961434,0.7658,2475.0,2474.6,4.04102]
[1730826961762,0.7658,2475.0,2474.6,8.08194]
[1730826962284,0.7658,2475.0,2474.6,4.04092]
[1730826962778,0.7658,2475.0,2474.4,4.04129]
[1730826962973,4.04056,2474.9,2474.4,4.04129]
[1730826963173,8.08122,2474.9,2474.4,4.04129]
[1730826963518,0.8264,2474.8,2474.4,4.04129]
[1730826963578,0.8264,2474.8,2474.2,4.04161]
[1730826963885,0.7934,2474.5,2474.0,4.04194]
[1730826964180,0.7934,2474.5,2474.1,0.31360483]
[1730826964382,0.7934,2474.5,2474.0,8.08384]
[1730826964590,0.7934,2474.5,2474.1,4.35562036]
[1730826964824,0.7934,2474.5,2474.1,4.04186]
[1730826964952,0.7934,2474.5,2474.0,4.04191]
[1730826965148,0.7934,2474.5,2474.1,0.31378448]
[1730826965475,0.7934,2474.5,2474.0,4.04191]
[1730826965666,4.83472,2474.5,2474.1,0.31386022]
[1730826965865,4.83472,2474.5,2473.9,4.04218]
[1730826966077,4.83472,2474.5,2474.0,4.35588824]
[1730826966383,4.83866,2474.3,2473.8,4.04222]
[1730826966587,0.496696,2474.8,2473.9,0.31399274]
[1730826966754,0.496696,2474.8,2473.5,0.50239515]
[1730826966755,4.04198,2474.1,2473.5,0.50239515]
[1730826966960,4.83889,2474.2,2473.6,4.04268]
[1730826967322,4.0419,2474.1,2473.7,0.31408825]
[1730826967460,4.0419,2474.1,2473.4,8.08587]
[1730826967461,4.04207,2474.0,2473.4,8.08587]
[1730826967659,4.04125,2474.5,2473.5,0.31405404]
[1730826967660,4.83931,2473.9,2473.5,0.31405404]
[1730826967956,4.83931,2473.9,2473.3,4.04317]
[1730826968155,4.83931,2473.9,2473.4,0.31408408]
[1730826968356,4.83931,2473.9,2473.2,4.04326]
[1730826968570,4.83931,2473.9,2473.4,4.04301]
[1730826969051,4.04271,2473.6,2473.0,4.0436]
[1730826969255,0.8153,2473.7,2473.2,4.04333]
[1730826969459,4.85784,2473.7,2473.2,4.04333]
[1730826969658,4.85784,2473.7,2473.0,8.08714]
[1730826969961,4.04254,2473.7,2473.1,4.35726019]
[1730826970168,0.7971,2473.6,2473.1,4.04349]
[1730826970483,4.84021,2473.4,2472.8,4.04389]
[1730826970666,4.0432,2473.3,2472.8,4.04389]
[1730826972559,0.7971,2473.4,2473.0,4.04352]
[1730826972895,0.7971,2473.4,2473.1,4.04337]
[1730826973599,0.7971,2473.4,2473.0,4.04352]
[1730826973780,0.7971,2473.4,2473.1,4.0434]
[1730826974156,0.7971,2473.4,2473.0,4.04352]
[1730826974761,0.7971,2473.4,2473.1,4.04347]
[1730826975173,0.7971,2473.4,2473.0,4.04352]
[1730826975380,0.7971,2473.4,2472.8,4.04388]
[1730826975658,4.84012,2473.4,2472.8,4.04388]
[1730826975864,8.88325,2473.4,2472.8,4.04388]
[1730826976298,4.0433,2473.3,2472.7,4.044]
[1730826977294,0.7971,2473.4,2473.0,4.04361]
[1730826977669,0.7971,2473.4,2473.0,4.04355]
[1730826978396,0.7971,2473.4,2472.9,4.04379]
[1730826978603,0.8284,2473.2,2472.6,4.04418]
[1730826979269,0.8284,2473.2,2472.4,7.04452]
[1730826979470,0.7588,2472.9,2472.5,0.08087628]
[1730826979730,0.7588,2473.3,2472.8,4.04399]
[1730826979888,0.7588,2473.3,2472.9,4.04374]
[1730826980200,0.7588,2473.3,2473.1,4.0434]
[1730826980501,0.7588,2473.3,2473.2,4.04334]
[1730826980662,0.7588,2473.7,2473.2,4.04334]
[1730826980864,4.80134,2473.7,2473.2,4.04334]
[1730826981180,4.80134,2473.7,2473.1,8.0868]
[1730826981181,4.80135,2473.7,2473.1,8.0868]
[1730826981506,0.7588,2473.7,2473.4,4.04299]
[1730826981700,0.7588,2473.7,2473.2,4.0432]
[1730826982901,0.7588,2473.7,2473.3,0.08085398]
[1730826983864,0.7588,2473.7,2473.4,4.04288]
[1730826984066,0.7632,2474.0,2473.7,4.04243]
[1730826984360,0.7632,2474.0,2473.8,4.04234]
[1730826984699,0.7632,2474.0,2473.9,4.0422]
[1730826985859,0.7531,2474.2,2473.9,4.0422]
[1730826986315,0.7531,2474.2,2473.8,4.04235]
[1730826986509,4.79492,2474.2,2473.6,8.08513]
[1730826986804,4.79492,2474.2,2473.6,4.04254]
[1730826987334,4.79492,2474.2,2473.7,0.31464634]
[1730826987630,4.79492,2474.2,2473.6,4.04254]
[1730826987928,0.7531,2474.2,2473.7,4.35713151]
[1730826988091,0.7531,2474.2,2473.7,4.04252]
[1730826988634,0.7531,2474.2,2473.8,0.31470961]
[1730826988805,0.7531,2474.2,2473.7,4.04252]
[1730826988988,0.7531,2474.2,2473.9,4.04217]
[1730826989187,0.7531,2474.2,2474.0,4.04203]
[1730826989497,0.7531,2474.2,2473.9,4.04211]
[1730826989902,0.7531,2474.2,2473.7,4.04241]
[1730826990104,0.7531,2474.2,2473.8,0.31491384]
[1730826990303,4.79482,2474.2,2473.7,4.04241]
[1730826990508,0.7531,2474.2,2473.8,0.31503057]
[1730826990838,0.7531,2474.2,2473.7,4.04241]
[1730826990897,0.7531,2474.2,2473.8,0.31503742]
[1730826991100,0.7531,2474.2,2473.8,4.04234]
[1730826991320,1.232574,2474.2,2472.6,0.83385381]
[1730826991592,0.01,2472.2,2471.5,4.53056192]
[1730826991834,0.01,2472.2,2471.6,0.50518467]
[1730826991835,0.01,2472.0,2471.6,0.50518467]
[1730826991988,0.01,2472.0,2471.7,0.50518467]
[1730826992195,0.01,2471.8,2471.6,0.50518467]
[1730826992423,0.01,2471.8,2471.5,0.0618901]
[1730826992832,0.01,2471.8,2471.5,0.56719324]
[1730826993006,0.01,2471.8,2471.5,0.0618901]
[1730826993210,0.01,2471.8,2471.5,0.56719324]
[1730826993531,0.01,2471.8,2471.5,0.0618901]
[1730826997961,4.05563,2471.8,2471.5,0.0618901]
[1730826998121,4.866729,2471.8,2471.5,0.0618901]
[1730826998446,0.8209,2471.6,2471.5,0.0618901]
[1730826998843,9.38795669,2471.6,2471.5,0.0618901]
[1730826999739,5.34199669,2471.6,2471.5,0.0618901]
[1730827000056,0.8209,2471.6,2471.5,0.0618901]
[1730827000405,4.86686,2471.6,2471.5,0.0618901]
[1730827000604,5.8402359,2471.6,2471.5,0.0618901]
[1730827002547,10.91133259,2471.6,2471.5,0.0618901]
[1730827003256,8.57819669,2470.9,2470.8,0.84003285]
[1730827003846,4.0571,2470.9,2470.8,0.89952567]
[1730827004152,9.47137469,2470.9,2470.8,0.89952567]
[1730827004322,4.0571,2470.9,2470.8,0.89952567]
[1730827004847,0.01,2470.9,2470.8,0.89952567]
[1730827005882,4.6071,2470.9,2470.8,0.89952567]
[1730827006244,9.12819669,2470.9,2470.8,0.89952567]
[1730827006449,11.25301036,2470.9,2470.8,0.84003285]
[1730827007677,14.25301036,2470.9,2470.8,0.84003285]
[1730827008357,11.25301036,2470.9,2470.8,0.84003285]
[1730827008682,6.73191367,2470.9,2470.8,0.84003285]
[1730827008869,6.73191367,2470.9,2470.8,0.89989465]
[1730827009569,0.8163,2470.9,2470.8,0.89989465]
[1730827009887,0.8163,2470.9,2470.8,0.90737738]
[1730827010069,0.8163,2470.9,2470.8,0.06734453]
[1730827010389,0.02,2470.7,2470.4,4.04777]
[1730827010777,0.01,2470.7,2470.4,4.04777]
[1730827010981,0.02,2470.7,2470.4,4.04777]
[1730827011496,0.02,2470.7,2470.4,8.0956]
[1730827012082,0.01,2470.7,2470.4,4.04777]
[1730827012246,0.02,2470.7,2470.4,4.04777]
[1730827012580,0.02,2470.7,2470.5,4.04766]
[1730827013035,0.02,2470.7,2470.6,4.11530248]
[1730827014887,0.01,2470.7,2470.6,4.11530248]
[1730827015101,0.01,2470.9,2470.8,4.04727]
[1730827015304,0.01,2470.9,2470.6,8.16274248]
[1730827015482,0.01,2470.9,2470.6,4.11515248]
[1730827015649,0.01,2471.0,2470.7,4.11489433]
[1730827016074,0.01,2470.8,2470.7,0.06746433]
[1730827016650,0.01,2470.8,2470.7,4.11489433]
[1730827016772,0.02,2471.0,2470.8,4.04722]
[1730827017109,0.02,2471.0,2470.9,0.0669681]
[1730827017314,0.01,2471.2,2470.9,0.0669681]
[1730827017609,4.79857,2471.4,2470.9,0.0669681]
[1730827017610,0.01,2471.0,2470.9,0.0669681]
[1730827019079,0.01,2471.0,2470.6,4.04751]
[1730827019274,0.01,2471.0,2470.9,0.0595204]
[1730827019680,0.01,2470.7,2470.6,0.31384564]
[1730827019992,0.01,2470.7,2470.4,4.04782]
[1730827020304,0.01,2470.7,2470.5,0.81703972]
[1730827020464,0.01,2470.7,2470.6,0.31390067]
[1730827021093,0.01,2470.7,2470.6,0.81708556]
[1730827021637,0.01,2470.7,2470.6,0.8198373]
[1730827022431,0.01,2470.7,2470.3,4.04802]
[1730827022573,0.01,2470.7,2470.4,0.81984703]
[1730827022912,0.01,2470.7,2470.5,0.81984703]
[1730827023066,0.01,2470.7,2470.6,0.81984703]
[1730827023067,0.02,2470.7,2470.6,0.81984703]
[1730827023268,5.296459,2470.7,2470.6,0.81984703]
[1730827023664,5.296459,2470.7,2470.6,0.31532308]
[1730827024944,5.846459,2470.7,2470.6,0.31532308]
[1730827025428,8.846459,2470.7,2470.6,0.31532308]
[1730827026226,1.239029,2470.7,2470.6,0.31532308]
[1730827026433,0.8423,2470.7,2470.6,0.82041526]
[1730827026936,0.02,2470.7,2470.6,0.82041526]
[1730827030005,0.01,2470.7,2470.6,0.82249417]
[1730827030236,0.8085,2470.9,2470.7,4.04734]
[1730827030237,0.01,2470.9,2470.7,4.04734]
[1730827030544,0.01,2470.9,2470.6,1.34975524]
[1730827030545,0.01,2470.9,2470.8,1.34988918]
[1730827030695,0.01,2470.9,2470.8,5.39715918]
[1730827031042,0.02,2471.1,2470.9,4.04708]
[1730827031335,0.02,2471.1,2471.0,5.39687586]
[1730827031336,0.01,2471.1,2471.0,5.39687586]
[1730827031638,0.01,2471.1,2471.0,4.04694]
[1730827031940,0.01,2471.1,2471.0,5.39733641]
[1730827032152,0.01,2471.1,2471.0,1.35039641]
[1730827032761,0.7884,2471.1,2471.0,1.35039641]
[1730827032906,0.7884,2471.1,2471.0,0.82288489]
[1730827033107,0.02,2471.1,2471.0,0.82288489]
[1730827033353,0.02,2471.1,2471.0,1.35039641]
[1730827033844,0.02,2471.1,2471.0,0.82288489]
[1730827038982,0.01,2471.1,2471.0,1.35039641]
[1730827039155,0.02,2471.3,2471.0,1.35039641]
[1730827039366,0.02,2471.3,2471.1,0.82288489]
[1730827039685,0.02,2471.3,2471.2,0.82288489]
[1730827039994,0.01,2471.3,2471.2,0.82288489]
[1730827042299,0.02,2471.3,2471.2,0.82288489]
[1730827042659,0.50347,2471.3,2471.2,0.82288489]
[1730827042857,4.54992,2471.3,2471.2,0.82288489]
[1730827043093,0.50347,2471.3,2471.2,0.82288489]
[1730827043407,4.54992,2471.3,2471.2,0.82345148]
[1730827043914,4.54992,2471.3,2471.2,0.82350979]
[1730827044134,0.01,2471.3,2471.2,0.82350979]
[1730827044423,0.01,2471.6,2471.4,4.04628]
[1730827044623,0.01,2471.6,2471.5,0.82350979]
[1730827044777,0.01,2471.6,2471.5,0.82359601]
[1730827045679,0.01,2471.6,2471.5,0.31676499]
[1730827046497,4.05596,2471.6,2471.5,0.31676499]
[1730827046833,0.01,2471.1,2470.6,4.63930735]
[1730827046998,0.8426,2471.1,2470.6,4.11134]
[1730827047226,0.8426,2471.1,2470.7,4.87052623]
[1730827047553,0.8426,2471.1,2470.6,0.0639]
[1730827047554,0.01,2471.0,2470.8,0.82311623]
[1730827047701,0.01,2471.0,2470.9,0.31658046]
[1730827049334,0.01,2471.0,2470.7,4.04742]
[1730827049643,0.01,2471.0,2470.4,0.0639]
[1730827049644,4.0571,2470.9,2470.4,0.0639]
[1730827049935,0.49997,2470.9,2470.5,0.82335535]
[1730827050143,0.01,2471.1,2470.6,0.31667242]
[1730827050350,0.01,2471.1,2470.7,4.36400242]
[1730827050502,0.01,2471.1,2470.8,0.31667242]
[1730827050699,0.01,2471.1,2470.6,4.55413032]
[1730827051007,0.01,2471.1,2470.7,0.31659668]
[1730827051223,0.01,2471.1,2470.8,0.31659668]
[1730827051433,0.7759,2470.9,2470.6,0.50651532]
[1730827051638,0.7759,2470.9,2470.7,0.31656852]
[1730827051938,0.01,2470.8,2470.5,4.55416669]
[1730827052147,0.01,2470.8,2470.6,0.31656371]
[1730827052446,0.7759,2470.9,2470.2,3.0618901]
[1730827052447,0.02,2470.6,2470.2,0.0618901]
[1730827052600,0.01,2470.3,2470.2,0.0618901]
[1730827052805,0.01,2470.3,2470.2,0.37874597]
[1730827053022,0.01,2470.3,2470.2,0.0618901]
[1730827056417,0.492757,2470.3,2470.2,0.0618901]
[1730827056756,0.01,2470.3,2470.2,0.0618901]
[1730827056952,0.01,2470.4,2470.2,0.0618901]
[1730827058031,4.05806,2470.4,2470.2,0.0618901]
[1730827058214,0.01,2470.4,2470.2,0.0618901]
[1730827058608,0.01,2470.3,2470.2,0.0618901]
[1730827060361,0.821579,2470.3,2470.2,0.0618901]
[1730827061342,0.01,2470.3,2470.2,0.0618901]
[1730827061713,4.05809,2470.3,2470.2,0.0618901]
[1730827062354,0.01,2470.3,2470.2,0.0618901]
[1730827062559,0.01,2470.4,2470.2,0.0618901]
[1730827063067,4.05809,2470.3,2470.2,0.0618901]
[1730827063427,4.869676,2470.3,2470.2,0.0618901]
[1730827064864,5.652376,2470.3,2470.2,0.0618901]
[1730827065775,6.174676,2470.3,2470.2,0.0618901]
[1730827067033,5.624676,2470.3,2470.2,0.0618901]
[1730827068939,6.174676,2470.3,2470.2,0.0618901]
[1730827069340,5.624676,2470.3,2470.2,0.0618901]
[1730827072472,5.614676,2470.3,2470.2,0.0618901]
[1730827072639,5.624676,2470.3,2470.2,0.0618901]
[1730827078763,6.174676,2470.3,2470.2,0.0618901]
[1730827079449,5.624676,2470.3,2470.2,0.0618901]
[1730827079987,5.624676,2470.3,2470.2,0.12829691]
[1730827080776,6.174676,2470.3,2470.2,0.0618901]
[1730827081349,5.624676,2470.3,2470.2,0.12829691]
[1730827081675,4.81309,2470.3,2470.2,0.12829691]
[1730827083166,5.36309,2470.3,2470.2,0.12829691]
[1730827083363,5.36309,2470.3,2470.2,0.0618901]
[1730827084799,8.37309,2470.3,2470.2,0.0618901]
[1730827085004,9.99116932,2470.3,2470.2,0.0618901]
[1730827085606,10.00116932,2470.3,2470.2,0.0618901]
[1730827085893,9.99116932,2470.3,2470.2,0.0618901]
[1730827086413,10.00116932,2470.3,2470.2,0.0618901]
[1730827086557,10.00116932,2470.3,2470.2,1e-07]
[1730827086762,4.82543,2469.6,2469.5,0.31813473]
[1730827086961,4.82543,2469.6,2469.5,0.38643042]
[1730827087262,4.82543,2469.6,2469.5,0.31813473]
[1730827087454,4.82543,2469.6,2469.0,0.0618901]
[1730827087658,4.05969,2469.4,2469.0,0.0618901]
[1730827087879,4.05969,2469.4,2469.1,0.06928935]
[1730827088795,0.01,2469.4,2469.1,0.06928935]
[1730827089004,0.01,2469.4,2469.1,0.13318935]
[1730827089373,0.02,2469.8,2469.5,4.04927]
[1730827089576,0.02,2469.8,2469.6,0.07776837]
[1730827089904,0.01,2469.8,2469.6,0.07776837]
[1730827090082,0.01,2469.8,2469.6,4.12691837]
[1730827090462,0.02,2469.8,2469.6,0.07776837]
[1730827090994,0.02,2469.8,2469.7,0.82736938]
[1730827091195,0.02,2469.8,2469.7,0.90485392]
[1730827091563,0.02,2469.8,2469.7,0.39570081]
[1730827091787,0.01,2469.8,2469.7,0.39570081]
[1730827091990,0.01,2469.8,2469.7,0.96860195]
[1730827093231,0.02,2470.0,2469.7,5.01758195]
[1730827093512,0.02,2470.0,2469.7,8.23931454]
[1730827093704,0.02,2470.0,2469.8,0.82734689]
[1730827093878,0.02,2470.0,2469.9,0.31820762]
[1730827094076,0.02,2470.0,2469.9,0.38577376]
[1730827094283,0.02,2470.0,2469.9,0.89488859]
[1730827094578,0.01,2470.0,2469.9,0.89488859]
[1730827094787,0.01,2470.4,2470.2,4.04815]
[1730827094966,0.01,2470.4,2470.3,0.39416197]
[1730827096671,0.01,2470.4,2470.3,0.07595435]
[1730827096899,0.02,2470.6,2470.3,0.39396127]
[1730827097062,4.8669,2470.9,2470.3,0.39396127]
[1730827097063,0.01,2470.4,2470.3,4.04809]
[1730827097266,0.01,2470.7,2470.4,0.0639]
[1730827097706,0.01,2470.6,2470.4,0.0639]
[1730827098066,0.01,2470.7,2470.4,0.0639]
[1730827098310,0.02,2470.9,2470.5,4.04775]
[1730827098518,0.02,2470.9,2470.6,4.04758]
[1730827098666,0.02,2470.9,2470.5,4.04775]
[1730827098998,0.02,2470.9,2470.6,0.31749575]
[1730827099201,0.02,2470.9,2470.5,4.04766]
[1730827099506,0.02,2470.9,2470.5,8.09533]
[1730827099845,0.02,2470.9,2470.5,8.09531]
[1730827100113,0.01,2470.9,2470.6,4.04757]
[1730827100284,0.02,2470.9,2470.7,4.04738]
[1730827100484,0.01,2470.9,2470.7,4.04738]
[1730827100683,0.02,2471.1,2470.7,4.04738]
[1730827101017,0.01,2470.9,2470.7,4.04733]
[1730827101213,0.01,2471.1,2470.8,0.0639]
[1730827101419,0.02,2471.1,2470.8,0.0639]
[1730827101720,0.01,2471.1,2470.8,0.0639]
[1730827101924,0.02,2471.1,2470.8,0.0639]
[1730827102127,0.02,2470.9,2470.8,0.0639]
[1730827102423,0.01,2470.9,2470.8,0.0639]
[1730827103952,0.02,2471.1,2470.8,0.0639]
[1730827104098,0.01,2471.1,2470.8,0.0639]
[1730827105715,0.01,2471.1,2470.8,4.11106]
[1730827105923,0.01,2471.3,2470.9,4.047]
[1730827106140,0.01,2471.3,2470.9,8.09401]
[1730827106344,0.01,2471.5,2471.1,4.04677]
[1730827106548,0.01,2471.5,2470.9,4.047]
[1730827106549,0.01,2471.3,2471.2,0.0639]
[1730827106836,0.01,2471.4,2471.2,0.0639]
[1730827107847,0.01,2471.6,2471.2,4.11051]
[1730827107848,0.02,2471.6,2471.2,4.11051]
[1730827108037,0.01,2471.3,2471.2,4.11051]
[1730827108379,0.01,2471.3,2471.2,0.0639]
[1730827108876,0.01,2471.3,2471.2,4.11051]
[1730827110072,0.01,2471.5,2471.2,4.11051]
[1730827110278,0.01,2471.5,2471.2,8.15712]
[1730827110483,0.01,2471.5,2471.3,4.04644]
[1730827110787,0.7618,2472.7,2472.0,4.10904]
[1730827110935,0.7618,2472.7,2472.2,7.88463319]
[1730827111782,4.80481,2473.0,2472.5,3.83977319]
[1730827112431,4.80449,2473.2,2472.5,3.92065685]
[1730827112601,5.689245,2473.2,2472.5,7.96512685]
[1730827112930,5.689245,2473.2,2472.5,3.92065685]
[1730827113088,5.689245,2473.2,2472.5,3.92065486]
[1730827113287,5.689245,2473.2,2472.5,3.83977319]
[1730827113536,5.689245,2473.2,2472.5,3.92065485]
[1730827113705,5.689245,2473.2,2472.5,3.83977319]
[1730827113886,5.689245,2473.2,2472.5,3.92065477]
[1730827114090,4.80449,2473.2,2472.5,7.96511477]
[1730827114437,4.80449,2473.2,2472.8,3.83977319]
[1730827117397,4.80449,2473.2,2473.1,3.83977319]
[1730827118411,0.7611,2473.2,2472.5,3.83977319]
[1730827118611,4.04461,2472.5,2471.9,0.0639]
[1730827118840,0.7559,2472.7,2472.3,3.83977319]
[1730827119053,0.7559,2472.7,2472.6,3.83977319]
[1730827120529,4.80006,2472.7,2472.6,3.83977319]
[1730827120837,4.04446,2472.6,2472.3,3.83977319]
[1730827121598,4.80006,2472.7,2472.3,3.83977319]
[1730827121836,4.0445,2472.5,2472.3,3.83977319]
[1730827122407,4.04434,2472.6,2472.3,3.83977319]
[1730827123201,4.0445,2472.5,2472.3,3.83977319]
[1730827124227,4.80011,2472.7,2472.3,3.83977319]
[1730827124428,0.7559,2472.7,2472.3,3.83977319]
[1730827124633,0.7559,2472.7,2472.6,3.83977319]
[1730827127622,4.80006,2472.7,2472.6,3.83977319]
[1730827131208,4.80006,2472.7,2472.6,4.15503223]
[1730827132351,4.80006,2472.7,2472.6,0.31525904]
[1730827133827,4.04416,2472.7,2472.6,0.31525904]
[1730827134032,4.044,2472.8,2472.6,0.31525904]
[1730827134228,4.044,2472.8,2472.7,0.31525904]
[1730827134822,8.0878,2472.9,2472.7,0.31525904]
[1730827135157,8.0878,2472.9,2472.4,3.90367319]
[1730827135158,4.04399,2472.8,2472.4,3.90367319]
[1730827135362,4.04399,2472.8,2472.5,1.45321136]
[1730827135545,4.04399,2472.8,2472.6,0.82137281]
[1730827135746,4.04399,2472.8,2472.7,0.82137281]
[1730827136055,5.679573,2472.8,2472.7,0.31590898]
[1730827136257,4.04444,2472.6,2472.1,3.83977319]
[1730827136483,8.08887,2472.6,2472.2,1.98138751]
[1730827136756,4.04443,2472.6,2472.3,1.45446217]
[1730827136965,4.87085,2472.8,2472.4,5.29423536]
[1730827137117,4.87085,2472.8,2472.5,1.45446217]
[1730827137319,8.91494,2472.8,2472.6,1.45446217]
[1730827137547,4.87085,2472.8,2472.7,0.82208044]
[1730827139289,4.87085,2472.8,2472.7,1.45595421]
[1730827139844,0.8268,2472.8,2472.4,3.83977319]
[1730827140049,4.04417,2472.7,2472.5,1.45804115]
[1730827140251,4.04417,2472.7,2472.6,1.45804115]
[1730827142580,4.04432,2472.6,2472.5,0.52935241]
[1730827142786,4.04432,2472.6,2472.5,1.99068835]
[1730827142966,4.87081,2472.8,2472.5,1.99068835]
[1730827143155,4.87081,2472.8,2472.6,1.99068835]
[1730827143156,8.91491,2472.8,2472.6,1.99068835]
[1730827143357,4.87081,2472.8,2472.7,1.46133594]
[1730827144591,0.8268,2472.8,2472.7,1.46133594]
[1730827144798,4.87079,2472.8,2472.7,1.46133594]
[1730827145479,4.04399,2472.8,2472.7,1.46133594]
[1730827145664,4.04399,2472.8,2472.7,1.99068835]
[1730827145846,0.7957,2473.0,2472.7,1.99068835]
[1730827146047,8.08718,2473.1,2472.7,3.90367319]
[1730827146303,4.04368,2473.0,2472.8,1.46214803]
[1730827146478,4.04368,2473.0,2472.7,4.43345379]
[1730827146479,4.04391,2472.9,2472.7,3.90367319]
[1730827146653,8.08749,2473.0,2472.8,1.4619442]
[1730827146986,4.04368,2473.0,2472.9,1.4619442]
[1730827148098,4.04443,2472.6,2472.0,8.83140216]
[1730827148412,4.04443,2472.6,2472.0,3.83977319]
[1730827148413,4.04466,2472.4,2472.0,3.83977319]
[1730827149784,4.04466,2472.4,2471.8,4.04551]
[1730827150356,4.04466,2472.4,2471.9,4.04546]
[1730827150558,4.04466,2472.4,2471.8,8.09104]
[1730827150758,4.04466,2472.4,2471.8,4.04551]
[1730827150993,4.04466,2472.4,2471.9,4.1263499]
[1730827151207,0.7914,2472.7,2472.1,4.04503]
[1730827151363,4.04377,2473.0,2472.4,4.10845]
[1730827151560,0.7914,2473.1,2472.5,4.12529287]
[1730827151760,4.04343,2473.2,2472.6,4.04423]
[1730827151973,4.04367,2473.0,2472.4,4.10855]
[1730827152401,4.04367,2473.0,2472.5,4.04447]
[1730827152703,4.04367,2473.0,2472.4,0.0639]
[1730827152999,8.08746,2473.0,2472.4,4.6389406]
[1730827153187,4.04367,2473.0,2472.4,4.6389406]
[1730827154397,4.04367,2473.0,2472.5,0.5304206]
[1730827154600,4.04367,2473.0,2472.5,4.04448]
[1730827155457,4.04344,2473.2,2472.5,4.12536319]
[1730827155896,4.04355,2473.1,2472.5,8.16984319]
[1730827156215,4.04355,2473.1,2472.6,0.69703885]
[1730827156450,4.04355,2473.1,2472.5,8.08896]
[1730827156602,4.04355,2473.1,2472.6,1.74412264]
[1730827156805,4.04355,2473.1,2472.6,1.04647657]
[1730827157440,0.7914,2473.3,2472.9,3.83977319]
[1730827157851,4.04334,2473.2,2472.8,0.0639]
[1730827158051,8.08678,2473.2,2472.9,0.50854954]
[1730827158202,4.04334,2473.2,2472.9,0.50854954]
[1730827158845,4.04356,2473.1,2472.9,0.50854954]
[1730827159037,0.7914,2473.3,2472.9,0.50854954]
[1730827159345,4.83461,2473.3,2472.9,0.50854954]
[1730827160114,4.83461,2473.3,2473.0,0.31754911]
[1730827160355,4.83461,2473.3,2472.8,4.04399]
[1730827160661,4.83461,2473.3,2472.9,0.31749203]
[1730827160857,4.04343,2473.2,2473.0,0.31749203]
[1730827161060,4.04343,2473.2,2472.7,0.50805021]
[1730827161214,4.04343,2473.2,2472.7,4.55217547]
[1730827161557,4.04343,2473.2,2472.8,0.82558025]
[1730827161755,4.04343,2473.2,2472.9,0.31753478]
[1730827162055,4.04343,2473.2,2473.0,0.31753478]
[1730827162259,4.04343,2473.2,2472.7,0.50800746]
[1730827162559,4.04343,2473.2,2472.8,0.31746345]
[1730827162741,4.04343,2473.2,2472.9,0.31746345]
[1730827163053,4.04343,2473.2,2472.7,4.04412]
[1730827163261,8.08692,2473.2,2472.8,0.31748672]
[1730827163413,8.08692,2473.2,2472.9,0.31748672]
[1730827163414,4.04343,2473.2,2472.9,0.31748672]
[1730827163619,4.04343,2473.2,2472.7,0.50798534]
[1730827163853,4.04343,2473.2,2472.8,0.31744582]
[1730827164165,4.04343,2473.2,2472.6,7.88399319]
[1730827164316,4.04343,2473.2,2472.7,0.31744107]
[1730827164512,4.04343,2473.2,2472.8,0.31744107]
[1730827164712,4.04343,2473.2,2472.6,11.92820319]
[1730827164942,4.04343,2473.2,2472.7,0.31753883]
[1730827165131,4.04343,2473.2,2472.8,0.31753883]
[1730827165326,4.04343,2473.2,2472.7,0.50816624]
[1730827165548,4.04343,2473.2,2472.8,0.31769846]
[1730827165549,8.08686,2473.2,2472.8,0.31769846]
[1730827165861,4.04343,2473.2,2472.6,7.88398319]
[1730827166165,4.04343,2473.2,2472.7,0.31786165]
[1730827166317,4.04351,2473.1,2472.8,0.31786165]
[1730827166669,4.04351,2473.1,2472.6,8.38919755]
[1730827166820,4.04351,2473.1,2472.7,0.31582786]
[1730827167017,4.04351,2473.1,2472.8,0.31582786]
[1730827167330,5.722442,2473.3,2472.8,4.04398]
[1730827167518,5.722442,2473.3,2472.7,4.54951387]
[1730827167719,5.722442,2473.3,2472.8,0.31583909]
[1730827167915,5.722442,2473.3,2472.9,0.31583909]
[1730827168145,5.722442,2473.3,2472.7,4.63038727]
[1730827168369,4.83467,2473.3,2472.8,0.3158583]
[1730827168661,4.83467,2473.3,2472.9,0.3158583]
[1730827168965,4.83467,2473.3,2472.8,4.04398]
[1730827169259,4.83467,2473.3,2472.9,0.3158387]
[1730827169472,4.83467,2473.3,2472.7,0.5053806]
[1730827169763,5.318137,2473.3,2472.8,0.3158771]
[1730827169948,5.318137,2473.3,2472.9,0.3158771]
[1730827170115,5.318137,2473.3,2472.7,4.54947806]
[1730827170319,5.318137,2473.3,2472.8,0.31585809]
[1730827170514,4.04338,2473.2,2472.9,0.31585877]
[1730827170721,4.0435,2473.1,2472.7,0.50538135]
[1730827170922,4.0435,2473.1,2472.8,0.31587282]
[1730827171156,4.0435,2473.1,2472.9,0.31587282]
[1730827171340,4.0435,2473.1,2472.7,0.50538135]
[1730827171541,4.0435,2473.1,2472.8,0.31593639]
[1730827171847,0.9361517,2473.2,2472.9,0.31593639]
[1730827172050,0.9361517,2473.2,2472.7,4.54950135]
[1730827172251,4.9795217,2473.2,2472.8,0.31597553]
[1730827172561,4.9795217,2473.2,2472.5,3.90367319]
[1730827172562,5.07335587,2473.1,2472.5,7.94810319]
[1730827172732,8.08722,2473.1,2472.6,0.82168658]
[1730827172933,4.04359,2473.1,2472.7,0.31603048]
[1730827173151,4.04359,2473.1,2472.6,0.58653439]
[1730827173351,4.04359,2473.1,2472.7,0.31596845]
[1730827173557,5.318147,2473.3,2472.8,4.15574164]
[1730827173743,4.04336,2473.2,2472.9,0.31596845]
[1730827173961,4.9795107,2473.2,2472.8,0.484]